Workbook

Sheet Bull Cost per Cow
A2: Bull Investment Cost Analysis Texas Agrilife Extension and Oklahoma State University Originally developed by James McGrann, Professor Emeritus, Texas A&M University and Christy Waggoner, Former Programmer, Texas A&M University Update by Damona Doye and Roger Sahs, Agricultural Economics, Oklahoma State University, and Lawrence Falconer, Mississippi State University
B5: Purchase Price of Bull | E5: 3250
B6: Useful Life (Years) | E6: 4
E7: Wt. Lb./Hd. | F7: $/cwt | G7: $/Head
B8: Bull Salvage Value | E8: 1800 | F8: 93 | G8: =E8*F8*0.01 -> 1674
B9: Interest Rate Used for Opportunity Cost | E9: 7 | F9: %
B10: Average Investment for Bull | G10: =(E5+G8)/2 -> 2462
B12: Cows Exposed to Bull Annually | E12: 30
B13: Weaned Calf Crop % | E13: 90 | F13: %
B14: Average Weaning Weight | E14: 525 | F14: Lb.
B15: Weaned Calf Price | E15: 170 | F15: $/cwt
B16: Calves Weaned Per Year | E16: =ROUND(+E12*E13*0.01,0) -> 27
B17: Calves Weaned During Useful Life of Bull | E17: =E6*E16 -> 108
B18: Pounds Weaned per Exposed Female | E18: =ROUND(E13*E14*0.01,0) -> 473 | F18: Lb. | G18: =E14*E15*0.01 -> 892.5
B20: Operating Cost Item | E20: Annual Bull Cost | G20: Annual Bull Cost per Cow Exposed | H20: Annual Bull Cost per Calf Weaned | I20: Annual Bull Cost per Cwt. Weaned | J20: Percent of Total Cost
B21: Grazing and Supplemental Feed | E21: 475 | G21: =ROUND(E21/$E$12,2) -> 15.83 | H21: =ROUND(E21/$E$16,2) -> 17.59 | I21: =ROUND(+H21/($E$14*0.01),2) -> 3.35
B22: Veterinary Medicine | E22: 35 | G22: =ROUND(E22/$E$12,2) -> 1.17 | H22: =ROUND(E22/$E$16,2) -> 1.3 | I22: =ROUND(+H22/($E$14*0.01),2) -> 0.25
B23: Other Cost | E23: 0 | G23: =ROUND(E23/$E$12,2) -> 0 | H23: =ROUND(E23/$E$16,2) -> 0 | I23: =ROUND(+H23/($E$14*0.01),2) -> 0
B24: Annual Interest on 1/2 of Operating Cost | E24: =ROUND((SUM(E21:E23)*0.5*E9*0.01),2) -> 17.85 | G24: =ROUND(E24/$E$12,2) -> 0.6 | H24: =ROUND(E24/$E$16,2) -> 0.66 | I24: =ROUND(+H24/($E$14*0.01),2) -> 0.13
B25: Annual Operating Cost | E25: =SUM(E21:E24) -> 527.85 | G25: =SUM(G21:G24) -> 17.6 | H25: =SUM(H21:H24) -> 19.55 | I25: =SUM(I21:I24) -> 3.73 | J25: =E25/E33 -> 0.4684962146
B27: Ownership Cost
B28: Depreciation | E28: =ROUND((E5-G8)/E6,2) -> 394 | G28: =ROUND(E28/$E$12,2) -> 13.13 | H28: =ROUND(E28/$E$16,2) -> 14.59 | I28: =ROUND(+H28/($E$14*0.01),2) -> 2.78
B29: Average Annual Interest Cost* | E29: =ROUND(G10*E9*0.01,2) -> 172.34 | G29: =ROUND(E29/$E$12,2) -> 5.74 | H29: =ROUND(E29/$E$16,2) -> 6.38 | I29: =ROUND(+H29/($E$14*0.01),2) -> 1.22
B30: Death Loss (% of Purchase Cost) | D30: 1 | E30: =ROUND(E5*D30*0.01,2) -> 32.5 | G30: =ROUND(E30/$E$12,2) -> 1.08 | H30: =ROUND(E30/$E$16,2) -> 1.2 | I30: =ROUND(+H30/($E$14*0.01),2) -> 0.23
B31: Annual Ownership Cost | E31: =SUM(E28:E30) -> 598.84 | G31: =SUM(G28:G30) -> 19.95 | H31: =SUM(H28:H30) -> 22.17 | I31: =SUM(I28:I30) -> 4.23 | J31: =E31/E33 -> 0.5315037854
B33: Annual Total Cost | E33: =E25+E31 -> 1126.69 | G33: =G25+G31 -> 37.55 | H33: =H25+H31 -> 41.72 | I33: =I25+I31 -> 7.96
B35: -----------------------------------------------------------------------------------------------------------------------------------------------------------------------------
B44: Annual Bull Cost for Various Bull Purchase Prices
E46: Annual Bull Cost per Cow | F46: Annual Bull Cost per Cwt. Weaned | G46: Change in Bull Cost per Cow | H46: Pounds of Weaned Calf per Cow*
B47: Purchase Price Increment | C47: 250 | D47: per head
B48: Price of Weaned Calf | C48: =E15 -> 170 | D48: per cwt
E49: $/Cow | F49: $/Cwt. | G49: $/Cow | H49: Lb.
B50: Bull Purchase Price | C50: =$C51-$C$47 -> 2500 | E50: =((($C50+$G$8)/2)*$E$9*0.01+$D$30*0.01*$C50+$E$25+($C50-$G$8)/$E$6)/$E$12 -> 30.18133333 | F50: =E50/$E$18*100 -> 6.380831572 | G50: =E50-E53 -> -7.375 | H50: =G50/($E$15*0.01) -> -4.338235294
C51: =$C52-$C$47 -> 2750 | E51: 32.63966667 | F51: 6.900563777 | G51: =E51-E53 -> -4.916666667 | H51: =G51/($E$15*0.01) -> -2.892156863
C52: =$C53-$C$47 -> 3000 | E52: 35.098 | F52: 7.420295983 | G52: =E52-E53 -> -2.458333333 | H52: =G52/($E$15*0.01) -> -1.446078431
B53: Base Price | C53: =E5 -> 3250 | E53: 37.55633333 | F53: 7.940028189
C54: =$C53+$C$47 -> 3500 | E54: 40.01466667 | F54: 8.459760395 | G54: =E54-E53 -> 2.458333333 | H54: =G54/($E$15*0.01) -> 1.446078431
C55: =$C54+$C$47 -> 3750 | E55: 42.473 | F55: 8.9794926 | G55: =E55-E53 -> 4.916666667 | H55: =G55/($E$15*0.01) -> 2.892156863
C56: =$C55+$C$47 -> 4000 | E56: 44.93133333 | F56: 9.499224806 | G56: =E56-E53 -> 7.375 | H56: =G56/($E$15*0.01) -> 4.338235294
B58: *Change in pounds weaned per exposed female or percent weaned times average weaning weight
B60: ---------------------------------------------------------------------------------------------------------------------------------------------------------------------------
C87: Sensitivity Analysis to Number of Cows Serviced
B89: Number of Cows Serviced Increment | D89: 10 | E89: Head Annually
C91: Number of Cows Serviced Annually and Cost per Cow
B92: Head Serviced Annually | D92: =E92-D89 -> 10 | E92: =(F92-D89) -> 20 | F92: =E12 -> 30 | G92: =(F92+D89) -> 40 | H92: =G92+D89 -> 50
C93: $/Head | F93: $/Cow
C94: =$C95-$C$47 -> 2500 | D94: =((($C94+$G$8)/2)*$E$9*0.01+0.01*$C94+$E$25+($C94-$G$8)/$E$6)/$D$92 -> 90.544 | E94: =((($C94+$G$8)/2)*$E$9*0.01+0.01*$C94+$E$25+($C94-$G$8)/$E$6)/$E$92 -> 45.272 | F94: =((($C94+$G$8)/2)*$E$9*0.01+0.01*$C94+$E$25+($C94-$G$8)/$E$6)/$F$92 -> 30.18133333 | G94: =((($C94+$G$8)/2)*$E$9*0.01+0.01*$C94+$E$25++($C94-$G$8)/$E$6)/G$92 -> 22.636 | H94: =((($C94+$G$8)/2)*$E$9*0.01+0.01*$C94+$E$25+($C94-$G$8)/$E$6)/H$92 -> 18.1088
C95: =$C96-$C$47 -> 2750 | D95: 97.919 | E95: 48.9595 | F95: 32.63966667 | G95: 24.47975 | H95: 19.5838
C96: =$C97-$C$47 -> 3000 | D96: 105.294 | E96: 52.647 | F96: 35.098 | G96: 26.3235 | H96: 21.0588
B97: Base Purchase cost | C97: =E5 -> 3250 | D97: 112.669 | E97: 56.3345 | F97: 37.55633333 | G97: 28.16725 | H97: 22.5338
C98: =$C97+$C$47 -> 3500 | D98: 120.044 | E98: 60.022 | F98: 40.01466667 | G98: 30.011 | H98: 24.0088
C99: =$C98+$C$47 -> 3750 | D99: 127.419 | E99: 63.7095 | F99: 42.473 | G99: 31.85475 | H99: 25.4838
C100: =$C99+$C$47 -> 4000 | D100: 134.794 | E100: 67.397 | F100: 44.93133333 | G100: 33.6985 | H100: 26.9588
B101: -------------------------------------------------------------------------------------------------------------------------------------------------------------------------------

Sheet Sheet1
